[Event "Reykjavik Open 2025"]
[Site "Reykjavik, Iceland"]
[Date "2025.04.12"]
[Round "5.3"]
[White "Royal, Shreyas"]
[Black "Ivic, Velimir"]
[Result "1/2-1/2"]
[WhiteElo "2465"]
[WhiteTitle "GM"]
[WhiteFideId "448869"]
[BlackElo "2623"]
[BlackTitle "GM"]
[BlackFideId "950122"]
[TimeControl "90+30 +30 after 40 moves"]
[Variant "Standard"]
[ECO "B07"]
[Opening "Pirc Defense"]
[StudyName "Round 5"]
1. d4 { [%clk 1:30:30] } 1... d6 { [%clk 1:30:35] } 2. e4 { [%clk 1:31:01] } 2... Nf6 { [%clk 1:30:50] } 3. Nc3 { [%clk 1:31:25] } 3... g6 { [%clk 1:30:53] } 4. Be3 { [%clk 1:29:46] } 4... Bg7 { [%clk 1:29:27] } 5. Qd2 { [%clk 1:28:07] } 5... c6 { [%clk 1:28:52] } 6. f3 { [%clk 1:25:55] } 6... b5 { [%clk 1:25:38] } 7. h4 { [%clk 1:21:59] } 7... h5 { [%clk 1:12:14] } 8. Nh3 { [%clk 1:21:31] } 8... Nbd7 { [%clk 1:06:41] } 9. Ng5 { [%clk 1:17:29] } 9... Nb6 { [%clk 1:05:41] } 10. Bd3 { [%clk 1:12:56] } 10... e5 { [%clk 0:59:09] } 11. O-O-O { [%clk 1:04:36] } 11... exd4 { [%clk 0:54:59] } 12. Bxd4 { [%clk 1:04:55] } 12... b4 { [%clk 0:54:54] } 13. Ne2 { [%clk 1:04:40] } 13... O-O { [%clk 0:54:36] } 14. b3 { [%clk 0:47:38] } 14... a5 { [%clk 0:48:40] } 15. Bb2 { [%clk 0:38:52] } 15... a4 { [%clk 0:46:08] } 16. Qxb4 { [%clk 0:38:49] } 16... axb3 { [%clk 0:44:51] } 17. axb3 { [%clk 0:35:17] } 17... Ra2 { [%clk 0:43:17] } 18. Qe1 { [%clk 0:34:51] } 18... Rxb2 { [%clk 0:39:57] } 19. Kxb2 { [%clk 0:33:50] } 19... Nxe4+ { [%clk 0:40:19] } 20. c3 { [%clk 0:33:37] } 20... Nxg5 { [%clk 0:38:49] } 21. hxg5 { [%clk 0:34:06] } 21... Qxg5 { [%clk 0:38:37] } 22. Qf2 { [%clk 0:29:49] } 22... c5 { [%clk 0:35:07] } 23. Qh4 { [%clk 0:27:40] } 23... Qe5 { [%clk 0:27:22] } 24. Qe4 { [%clk 0:27:57] } 24... Qf6 { [%clk 0:21:52] } 25. Qc6 { [%clk 0:27:22] } 25... d5 { [%clk 0:15:32] } 26. Qxc5 { [%clk 0:26:19] } 26... Bd7 { [%clk 0:15:16] } 27. Nd4 { [%clk 0:24:14] } 27... Rc8 { [%clk 0:15:08] } 28. Qa5 { [%clk 0:23:15] } 28... Ra8 { [%clk 0:15:30] } 29. Qc5 { [%clk 0:22:54] } 29... Bf8 { [%clk 0:10:18] } 30. Qc7 { [%clk 0:23:23] } 30... Bd6 { [%clk 0:08:36] } 31. Qb7 { [%clk 0:23:49] } 31... Rb8 { [%clk 0:08:56] } 32. Qa7 { [%clk 0:23:00] } 32... Ra8 { [%clk 0:08:08] } 33. Qb7 { [%clk 0:23:28] } 33... Be5 { [%clk 0:07:20] } 34. Ra1 { [%clk 0:20:50] } 34... Rb8 { [%clk 0:06:03] } 35. Qa7 { [%clk 0:20:56] } 35... Rc8 { [%clk 0:04:06] } 36. Ra6 { [%clk 0:21:21] } 36... Bxd4 { [%clk 0:03:22] } 37. cxd4 { [%clk 0:21:50] } 37... Qxd4+ { [%clk 0:03:40] } 38. Ka2 { [%clk 0:20:00] } 38... Qxd3 { [%clk 0:03:18] } 39. Qxb6 { [%clk 0:19:06] } 39... Qd2+ { [%clk 0:02:23] } 40. Ka3 { [%clk 0:18:15] } 40... Rc2 { [%clk 0:00:56] } 41. Ra1 { [%clk 0:18:44] } 41... Rc8 { [%clk 0:23:18] } 42. Qb7 { [%clk 0:38:05] } 42... Be6 { [%clk 0:16:06] } 43. Ra8 { [%clk 0:35:17] } 43... Qc3 { [%clk 0:16:08] } 44. Rb1 { [%clk 0:35:12] } 44... Qc5+ { [%clk 0:15:39] } 45. Ka2 { [%clk 0:35:16] } 45... d4 { [%clk 0:15:16] } 46. Rxc8+ { [%clk 0:32:05] } 46... Bxc8 { [%clk 0:15:44] } 47. Qa8 { [%clk 0:32:27] } 47... d3 { [%clk 0:12:01] } 48. Qa3 { [%clk 0:31:53] } 48... Qg5 { [%clk 0:10:37] } 49. Qd6 { [%clk 0:26:19] } 49... Qd2+ { [%clk 0:09:20] } 50. Ka3 { [%clk 0:24:42] } 50... Qa5+ { [%clk 0:09:37] } 51. Kb2 { [%clk 0:25:10] } 51... Qd2+ { [%clk 0:10:02] } 52. Ka3 { [%clk 0:25:29] } 52... Be6 { [%clk 0:09:31] } 53. Qd4 { [%clk 0:24:39] } 53... Qa5+ { [%clk 0:08:40] } 54. Kb2 { [%clk 0:24:56] } 54... Qd2+ { [%clk 0:09:05] } 55. Ka3 { [%clk 0:25:25] } 55... Qxg2 { [%clk 0:07:21] } 56. Qxd3 { [%clk 0:25:42] } 56... Bf5 { [%clk 0:07:28] } 57. Qd8+ { [%clk 0:26:07] } 57... Kh7 { [%clk 0:07:06] } 58. Re1 { [%clk 0:18:25] } 58... Qxf3 { [%clk 0:07:27] } 59. Re8 { [%clk 0:17:18] } 59... Qc3 { [%clk 0:07:13] } 60. Qd6 { [%clk 0:17:42] } 60... Be6 { [%clk 0:05:25] } 61. Rb8 { [%clk 0:18:11] } 61... h4 { [%clk 0:04:48] } 62. Qd8 { [%clk 0:18:01] } 62... Qc5+ { [%clk 0:02:19] } 63. Ka4 { [%clk 0:18:18] } 63... g5 { [%clk 0:01:10] } 64. Rb5 { [%clk 0:18:10] } 64... Qa7+ { [%clk 0:00:37] } 65. Kb4 { [%clk 0:18:29] } 65... Qe3 { [%clk 0:00:35] } 66. Qxg5 { [%clk 0:17:47] } 66... Qxg5 { [%clk 0:00:37] } 67. Rxg5 { [%clk 0:18:16] } 67... Kh6 { [%clk 0:00:44] } 68. Rg8 { [%clk 0:18:25] } 68... h3 { [%clk 0:00:34] } 69. Kc3 { [%clk 0:18:44] } 69... Kh5 { [%clk 0:00:37] } 70. Kd4 { [%clk 0:16:41] } 70... Bxb3 { [%clk 0:00:53] } 71. Ke3 { [%clk 0:16:58] } 71... Be6 { [%clk 0:00:50] } 72. Ke4 { [%clk 0:16:52] } 1/2-1/2

[Event "Reykjavik Open 2025"]
[Site "Reykjavik, Iceland"]
[Date "2025.04.12"]
[Round "5.10"]
[White "Sokolovsky, Yahli"]
[Black "Heimisson, Hilmir Freyr"]
[Result "1-0"]
[WhiteElo "2546"]
[WhiteTitle "GM"]
[WhiteFideId "2820242"]
[BlackElo "2376"]
[BlackTitle "IM"]
[BlackFideId "2309998"]
[TimeControl "90+30 +30 after 40 moves"]
[Variant "Standard"]
[ECO "C65"]
[Opening "Ruy Lopez: Berlin Defense"]
[StudyName "Round 5"]
1. e4 { [%clk 1:30:57] } 1... e5 { [%clk 1:30:47] } 2. Nf3 { [%clk 1:31:22] } 2... Nc6 { [%clk 1:30:59] } 3. Bb5 { [%clk 1:31:49] } 3... Nf6 { [%clk 1:31:10] } 4. d3 { [%clk 1:32:00] } 4... Bc5 { [%clk 1:31:08] } 5. c3 { [%clk 1:32:25] } 5... d5 { [%clk 1:30:11] } 6. exd5 { [%clk 1:32:22] } 6... Qxd5 { [%clk 1:30:27] } 7. Bc4 { [%clk 1:32:46] } 7... Qd6 { [%clk 1:30:19] } 8. b4 { [%clk 1:29:46] } 8... Bb6 { [%clk 1:30:25] } 9. Nbd2 { [%clk 1:29:55] } 9... Bf5 { [%clk 1:26:52] } 10. Ng5 { [%clk 1:29:54] } 10... O-O { [%clk 1:24:44] } 11. Nde4 { [%clk 1:29:12] } 11... Nxe4 { [%clk 1:22:42] } 12. dxe4 { [%clk 1:29:36] } 12... Qxd1+ { [%clk 1:21:55] } 13. Kxd1 { [%clk 1:30:03] } 13... Bg4+ { [%clk 1:21:23] } 14. Kc2 { [%clk 1:26:33] } 14... h6 { [%clk 1:11:54] } 15. Nf3 { [%clk 1:26:58] } 15... Bxf2 { [%clk 0:51:53] } 16. Rf1 { [%clk 1:27:23] } 16... Bxf3 { [%clk 0:52:17] } 17. gxf3 { [%clk 1:27:40] } 17... Bh4 { [%clk 0:52:42] } 18. Rg1 { [%clk 1:03:48] } 18... Kh7 { [%clk 0:50:19] } 19. Rd1 { [%clk 0:57:28] } 19... Be7 { [%clk 0:38:20] } 20. Rd7 { [%clk 0:44:01] } 20... Bd6 { [%clk 0:37:05] } 21. Be3 { [%clk 0:38:48] } 21... Rad8 { [%clk 0:21:30] } 22. Rxd8 { [%clk 0:39:03] } 22... Rxd8 { [%clk 0:21:51] } 23. Bd5 { [%clk 0:38:15] } 23... a6 { [%clk 0:21:43] } 24. Rb1 { [%clk 0:36:27] } 24... Ra8 { [%clk 0:17:05] } 25. Bxc6 { [%clk 0:20:38] } 25... bxc6 { [%clk 0:17:30] } 26. c4 { [%clk 0:20:56] } 26... f5 { [%clk 0:11:54] } 27. c5 { [%clk 0:20:31] } 27... Be7 { [%clk 0:11:12] } 28. Rd1 { [%clk 0:12:19] } 28... fxe4 { [%clk 0:11:19] } 29. Rd7 { [%clk 0:12:47] } 29... Bg5 { [%clk 0:11:33] } 30. Bxg5 { [%clk 0:13:12] } 30... hxg5 { [%clk 0:11:59] } 31. fxe4 { [%clk 0:13:36] } 31... a5 { [%clk 0:10:21] } 32. a4 { [%clk 0:11:54] } 32... Rb8 { [%clk 0:05:16] } 33. bxa5 { [%clk 0:12:11] } 33... Rb4 { [%clk 0:05:29] } 34. Rxc7 { [%clk 0:11:57] } 34... Rxa4 { [%clk 0:05:10] } 35. Kb3 { [%clk 0:10:20] } 35... Rxa5 { [%clk 0:03:15] } 36. Rxc6 { [%clk 0:10:49] } 36... Ra1 { [%clk 0:03:16] } 37. Re6 { [%clk 0:05:16] } 37... Rh1 { [%clk 0:00:51] } 38. c6 { [%clk 0:03:52] } 38... Rc1 { [%clk 0:00:36] } 39. Kb4 { [%clk 0:04:17] } 39... g4 { [%clk 0:00:38] } 40. Kb5 { [%clk 0:04:38] } 40... Rc2 { [%clk 0:00:33] } 41. Rxe5 { [%clk 0:28:12] } 41... Kg6 { [%clk 0:21:05] } 42. Rc5 { [%clk 0:25:38] } 42... Rxh2 { [%clk 0:21:29] } 43. c7 { [%clk 0:26:05] } 43... Rh8 { [%clk 0:21:53] } 44. c8=Q { [%clk 0:25:28] } 44... Rxc8 { [%clk 0:22:19] } 45. Rxc8 { [%clk 0:25:52] } 45... Kg5 { [%clk 0:22:45] } 46. Rc1 { [%clk 0:24:17] } 1-0

[Event "Reykjavik Open 2025"]
[Site "Reykjavik, Iceland"]
[Date "2025.04.12"]
[Round "5.13"]
[White "Akesson, Ralf"]
[Black "Zierk, Steven"]
[Result "1/2-1/2"]
[WhiteElo "2361"]
[WhiteTitle "GM"]
[WhiteFideId "1700120"]
[BlackElo "2501"]
[BlackTitle "GM"]
[BlackFideId "2034255"]
[TimeControl "90+30 +30 after 40 moves"]
[Variant "Standard"]
[ECO "E04"]
[Opening "Catalan Opening: Open Defense"]
[StudyName "Round 5"]
1. Nf3 { [%clk 1:29:43] } 1... d5 { [%clk 1:30:51] } 2. d4 { [%clk 1:29:56] } 2... Nf6 { [%clk 1:31:13] } 3. c4 { [%clk 1:30:16] } 3... e6 { [%clk 1:31:29] } 4. g3 { [%clk 1:29:34] } 4... dxc4 { [%clk 1:30:35] } 5. Bg2 { [%clk 1:29:45] } 5... a6 { [%clk 1:30:59] } 6. O-O { [%clk 1:27:52] } 6... Nc6 { [%clk 1:31:23] } 7. e3 { [%clk 1:24:15] } 7... Bd7 { [%clk 1:26:57] } 8. Qe2 { [%clk 1:21:46] } 8... b5 { [%clk 1:25:46] } 9. b3 { [%clk 1:20:59] } 9... cxb3 { [%clk 1:25:24] } 10. axb3 { [%clk 1:21:19] } 10... Bd6 { [%clk 1:20:12] } 11. Bb2 { [%clk 1:21:05] } 11... O-O { [%clk 1:19:15] } 12. Rc1 { [%clk 1:13:29] } 12... Nb4 { [%clk 1:14:56] } 13. Ne1 { [%clk 1:03:54] } 13... Ra7 { [%clk 1:07:08] } 14. e4 { [%clk 0:53:30] } 14... Be7 { [%clk 1:06:11] } 15. Nc3 { [%clk 0:52:46] } 15... Bc6 { [%clk 0:59:37] } 16. Na2 { [%clk 0:48:12] } 16... Nxa2 { [%clk 0:56:42] } 17. Rxa2 { [%clk 0:45:47] } 17... Bb7 { [%clk 0:53:44] } 18. Nd3 { [%clk 0:45:02] } 18... Nd7 { [%clk 0:52:20] } 19. Bc3 { [%clk 0:33:53] } 19... Qb8 { [%clk 0:31:05] } 20. d5 { [%clk 0:29:23] } 20... exd5 { [%clk 0:26:55] } 21. Bxg7 { [%clk 0:29:03] } 21... Kxg7 { [%clk 0:27:00] } 22. Qg4+ { [%clk 0:29:04] } 22... Kh8 { [%clk 0:27:19] } 23. Qxd7 { [%clk 0:29:14] } 23... Bg5 { [%clk 0:23:34] } 24. Rxc7 { [%clk 0:24:15] } 24... Bc6 { [%clk 0:21:19] } 25. Qxc6 { [%clk 0:19:54] } 25... Qxc7 { [%clk 0:19:08] } 26. Qxd5 { [%clk 0:16:15] } 26... Qd8 { [%clk 0:17:59] } 27. Ne5 { [%clk 0:10:45] } 27... Qxd5 { [%clk 0:14:42] } 28. exd5 { [%clk 0:11:09] } 28... Re8 { [%clk 0:07:15] } 29. f4 { [%clk 0:11:17] } 29... Bf6 { [%clk 0:07:00] } 30. Nc6 { [%clk 0:11:20] } 30... Raa8 { [%clk 0:06:17] } 31. d6 { [%clk 0:10:51] } 31... Re1+ { [%clk 0:05:05] } 32. Kf2 { [%clk 0:11:02] } 32... Rd1 { [%clk 0:05:06] } 33. d7 { [%clk 0:07:59] } 33... Kg7 { [%clk 0:03:50] } 34. Bh3 { [%clk 0:06:19] } 34... Rd6 { [%clk 0:03:21] } 35. Na5 { [%clk 0:04:32] } 35... Ra7 { [%clk 0:02:43] } 36. Rc2 { [%clk 0:04:16] } 36... Bd8 { [%clk 0:02:46] } 37. b4 { [%clk 0:03:33] } 37... Rc7 { [%clk 0:02:36] } 38. Re2 { [%clk 0:02:23] } 38... Rc1 { [%clk 0:01:34] } 39. Bf5 { [%clk 0:00:33] } 39... Kf6 { [%clk 0:00:40] } 40. g4 { [%clk 0:00:33] } 40... Rc3 { [%clk 0:00:34] } 41. Nb7 { [%clk 0:26:18] } 41... Bb6+ { [%clk 0:30:43] } 42. Kg2 { [%clk 0:26:26] } 42... Rd1 { [%clk 0:27:16] } 43. h3 { [%clk 0:26:21] } 43... h5 { [%clk 0:25:48] } 44. Ra2 { [%clk 0:15:10] } 44... h4 { [%clk 0:22:13] } 45. Nc5 { [%clk 0:15:03] } 45... Kg7 { [%clk 0:10:10] } 46. Ne4 { [%clk 0:08:41] } 46... Rg1+ { [%clk 0:06:18] } 47. Kh2 { [%clk 0:09:05] } 47... Rcc1 { [%clk 0:06:02] } 48. Nc5 { [%clk 0:07:28] } 48... Rgd1 { [%clk 0:04:49] } 49. Kg2 { [%clk 0:07:23] } 49... a5 { [%clk 0:02:48] } 50. Nd3 { [%clk 0:06:40] } 50... Rg1+ { [%clk 0:01:23] } 51. Kf3 { [%clk 0:07:03] } 51... Rc4 { [%clk 0:01:12] } 52. bxa5 { [%clk 0:06:29] } 52... Rg3+ { [%clk 0:01:37] } 53. Ke2 { [%clk 0:06:54] } 53... Rg2+ { [%clk 0:01:58] } 54. Kf3 { [%clk 0:07:18] } 54... Rg3+ { [%clk 0:02:24] } 55. Ke2 { [%clk 0:07:44] } 55... Rg2+ { [%clk 0:02:50] } 56. Kf3 { [%clk 0:08:09] } 56... Rxa2 { [%clk 0:01:49] } 57. axb6 { [%clk 0:08:31] } 57... Ra8 { [%clk 0:02:14] } 58. Ne5 { [%clk 0:07:48] } 58... Rc3+ { [%clk 0:01:50] } 59. Ke4 { [%clk 0:07:54] } 59... f6 { [%clk 0:01:40] } 60. Kd4 { [%clk 0:04:59] } 60... Rc1 { [%clk 0:01:08] } 61. Nd3 { [%clk 0:04:58] } 61... Rc4+ { [%clk 0:01:07] } 62. Kd5 { [%clk 0:05:18] } 62... Kf8 { [%clk 0:00:48] } 63. b7 { [%clk 0:05:03] } 63... Rb8 { [%clk 0:00:32] } 64. Kd6 { [%clk 0:05:19] } 64... b4 { [%clk 0:00:38] } 65. Kd5 { [%clk 0:02:24] } 65... Rc7 { [%clk 0:00:39] } 66. Nxb4 { [%clk 0:02:48] } 66... Rxd7+ { [%clk 0:00:52] } 67. Bxd7 { [%clk 0:03:07] } 67... Rxb7 { [%clk 0:01:19] } 68. Ke6 { [%clk 0:02:59] } 68... Rxb4 { [%clk 0:01:42] } 69. Kxf6 { [%clk 0:03:22] } 69... Rd4 { [%clk 0:01:30] } 70. Bf5 { [%clk 0:03:37] } 70... Rxf4 { [%clk 0:01:55] } 71. Kg5 { [%clk 0:03:59] } 71... Rf3 { [%clk 0:02:22] } 72. Kxh4 { [%clk 0:04:21] } 72... Kg7 { [%clk 0:02:45] } 73. Bd7 { [%clk 0:04:24] } 1/2-1/2

[Event "Reykjavik Open 2025"]
[Site "Reykjavik, Iceland"]
[Date "2025.04.12"]
[Round "5.14"]
[White "Draskovic, Luka"]
[Black "Papadiamandis, Elliot"]
[Result "1-0"]
[WhiteElo "2488"]
[WhiteTitle "GM"]
[WhiteFideId "944335"]
[BlackElo "2315"]
[BlackTitle "IM"]
[BlackFideId "36074160"]
[TimeControl "90+30 +30 after 40 moves"]
[Variant "Standard"]
[ECO "B51"]
[Opening "Sicilian Defense: Moscow Variation"]
[StudyName "Round 5"]
1. e4 { [%clk 1:30:55] } 1... c5 { [%clk 1:30:43] } 2. Nf3 { [%clk 1:31:01] } 2... d6 { [%clk 1:30:45] } 3. Bb5+ { [%clk 1:31:13] } 3... Nd7 { [%clk 1:31:02] } 4. O-O { [%clk 1:29:54] } 4... a6 { [%clk 1:30:52] } 5. Be2 { [%clk 1:30:13] } 5... Ngf6 { [%clk 1:30:11] } 6. d3 { [%clk 1:30:30] } 6... g6 { [%clk 1:30:23] } 7. c4 { [%clk 1:30:22] } 7... b5 { [%clk 1:21:41] } 8. cxb5 { [%clk 1:26:37] } 8... axb5 { [%clk 1:20:35] } 9. d4 { [%clk 1:26:12] } 9... Nxe4 { [%clk 0:48:24] } 10. Bxb5 { [%clk 1:25:59] } 10... Bb7 { [%clk 0:40:33] } 11. dxc5 { [%clk 1:03:35] } 11... Nxc5 { [%clk 0:38:57] } 12. b4 { [%clk 1:01:16] } 12... Ne6 { [%clk 0:38:03] } 13. Bb2 { [%clk 0:58:24] } 13... Bg7 { [%clk 0:38:27] } 14. Bxg7 { [%clk 0:57:41] } 14... Nxg7 { [%clk 0:38:48] } 15. a4 { [%clk 0:56:02] } 15... O-O { [%clk 0:36:49] } 16. Nc3 { [%clk 0:56:22] } 16... Ne6 { [%clk 0:32:02] } 17. Re1 { [%clk 0:48:28] } 17... Nf6 { [%clk 0:26:43] } 18. Nd4 { [%clk 0:46:08] } 18... Nxd4 { [%clk 0:20:43] } 19. Qxd4 { [%clk 0:46:13] } 19... e5 { [%clk 0:21:02] } 20. Qd2 { [%clk 0:45:41] } 20... Qe7 { [%clk 0:19:20] } 21. a5 { [%clk 0:41:20] } 21... Rac8 { [%clk 0:16:58] } 22. Bf1 { [%clk 0:40:17] } 22... d5 { [%clk 0:17:15] } 23. Na4 { [%clk 0:38:18] } 23... Ne4 { [%clk 0:16:17] } 24. Qb2 { [%clk 0:38:19] } 24... d4 { [%clk 0:07:00] } 25. a6 { [%clk 0:38:09] } 25... Bc6 { [%clk 0:07:18] } 26. b5 { [%clk 0:38:02] } 26... Rb8 { [%clk 0:07:35] } 27. Qc2 { [%clk 0:35:58] } 27... Bd5 { [%clk 0:07:50] } 28. Rxe4 { [%clk 0:36:13] } 28... Rfc8 { [%clk 0:08:15] } 29. Qb1 { [%clk 0:36:04] } 29... Bxe4 { [%clk 0:08:24] } 30. Qxe4 { [%clk 0:36:28] } 30... f5 { [%clk 0:06:59] } 31. Qd5+ { [%clk 0:36:51] } 31... Kg7 { [%clk 0:07:07] } 32. b6 { [%clk 0:37:12] } 32... Rd8 { [%clk 0:07:33] } 33. a7 { [%clk 0:36:37] } 1-0

[Event "Reykjavik Open 2025"]
[Site "Reykjavik, Iceland"]
[Date "2025.04.12"]
[Round "5.24"]
[White "Vogt, Lothar"]
[Black "Kirk, Ezra"]
[Result "0-1"]
[WhiteElo "2229"]
[WhiteTitle "GM"]
[WhiteFideId "4611292"]
[BlackElo "2394"]
[BlackTitle "IM"]
[BlackFideId "600067"]
[TimeControl "90+30 +30 after 40 moves"]
[Variant "Standard"]
[ECO "B22"]
[Opening "Sicilian Defense: Alapin Variation"]
[StudyName "Round 5"]
1. e4 { [%clk 1:30:56] } 1... c5 { [%clk 1:29:46] } 2. c3 { [%clk 1:30:13] } 2... Nf6 { [%clk 1:29:58] } 3. e5 { [%clk 1:30:40] } 3... Nd5 { [%clk 1:30:21] } 4. Nf3 { [%clk 1:31:04] } 4... d6 { [%clk 1:29:59] } 5. exd6 { [%clk 1:26:53] } 5... e6 { [%clk 1:30:12] } 6. d4 { [%clk 1:27:15] } 6... cxd4 { [%clk 1:28:32] } 7. cxd4 { [%clk 1:25:26] } 7... Bxd6 { [%clk 1:27:44] } 8. Nc3 { [%clk 1:25:33] } 8... O-O { [%clk 1:24:14] } 9. Bd3 { [%clk 1:25:55] } 9... Nxc3 { [%clk 1:11:11] } 10. bxc3 { [%clk 1:26:22] } 10... Nd7 { [%clk 1:11:13] } 11. O-O { [%clk 1:25:57] } 11... b6 { [%clk 1:11:10] } 12. c4 { [%clk 1:21:09] } 12... Bb7 { [%clk 1:10:25] } 13. Bb2 { [%clk 1:21:31] } 13... Qf6 { [%clk 1:02:18] } 14. Re1 { [%clk 1:10:55] } 14... Bxf3 { [%clk 1:00:54] } 15. Qxf3 { [%clk 1:11:20] } 15... Qxf3 { [%clk 1:01:16] } 16. gxf3 { [%clk 1:11:37] } 16... Rac8 { [%clk 1:00:40] } 17. a4 { [%clk 1:09:02] } 17... Bb4 { [%clk 0:52:57] } 18. Red1 { [%clk 1:08:19] } 18... Rfd8 { [%clk 0:49:45] } 19. Kf1 { [%clk 1:05:55] } 19... a5 { [%clk 0:42:54] } 20. Ke2 { [%clk 1:04:28] } 20... Be7 { [%clk 0:43:08] } 21. Rab1 { [%clk 1:00:27] } 21... Bf6 { [%clk 0:40:44] } 22. f4 { [%clk 0:56:50] } 22... g6 { [%clk 0:37:17] } 23. Ke3 { [%clk 0:56:28] } 23... Nb8 { [%clk 0:30:17] } 24. Be2 { [%clk 0:50:07] } 24... Nc6 { [%clk 0:25:29] } 25. d5 { [%clk 0:47:43] } 25... Bxb2 { [%clk 0:24:46] } 26. dxc6 { [%clk 0:47:58] } 26... Ba3 { [%clk 0:22:28] } 27. Bf3 { [%clk 0:46:40] } 27... Kf8 { [%clk 0:18:26] } 28. Rd7 { [%clk 0:44:34] } 28... Rxd7 { [%clk 0:16:00] } 29. cxd7 { [%clk 0:45:01] } 29... Rd8 { [%clk 0:15:51] } 30. Bc6 { [%clk 0:45:17] } 30... Ke7 { [%clk 0:15:37] } 31. f3 { [%clk 0:43:48] } 31... Bc5+ { [%clk 0:13:43] } 32. Ke4 { [%clk 0:42:54] } 32... h5 { [%clk 0:10:05] } 33. h3 { [%clk 0:42:59] } 33... h4 { [%clk 0:09:48] } 34. Rb2 { [%clk 0:41:53] } 34... Rh8 { [%clk 0:09:41] } 35. Rg2 { [%clk 0:41:28] } 35... Kd6 { [%clk 0:08:18] } 36. Bb5 { [%clk 0:41:49] } 36... Kc7 { [%clk 0:08:43] } 37. Rd2 { [%clk 0:38:26] } 37... Kd8 { [%clk 0:08:56] } 38. Rg2 { [%clk 0:37:24] } 38... Be7 { [%clk 0:08:04] } 39. Rd2 { [%clk 0:33:31] } 39... Rh5 { [%clk 0:07:22] } 40. Rd4 { [%clk 0:19:44] } 40... Bc5 { [%clk 0:04:21] } 41. Rd2 { [%clk 0:19:38] } 41... Rf5 { [%clk 0:01:47] } 42. Bc6 { [%clk 0:17:34] } 42... Bf8 { [%clk 0:29:16] } 43. Rb2 { [%clk 0:46:00] } 43... Bb4 { [%clk 0:28:51] } 44. Rb1 { [%clk 0:45:19] } 44... Bc5 { [%clk 0:21:22] } 45. Rd1 { [%clk 0:37:49] } 45... g5 { [%clk 0:19:23] } 46. fxg5 { [%clk 0:37:24] } 46... Rxg5 { [%clk 0:19:47] } 47. Rd2 { [%clk 0:24:08] } 47... Be7 { [%clk 0:18:15] } 48. Bb5 { [%clk 0:22:52] } 48... Rg3 { [%clk 0:17:50] } 49. Rh2 { [%clk 0:23:08] } 49... Bd6 { [%clk 0:16:38] } 50. Rh1 { [%clk 0:22:42] } 50... f5+ { [%clk 0:14:47] } 51. Ke3 { [%clk 0:23:06] } 51... e5 { [%clk 0:13:42] } 52. Ke2 { [%clk 0:22:26] } 52... Bc5 { [%clk 0:12:35] } 53. Bc6 { [%clk 0:21:03] } 53... Rg6 { [%clk 0:12:59] } 54. Bb5 { [%clk 0:21:04] } 54... Rg2+ { [%clk 0:11:45] } 55. Kd1 { [%clk 0:20:47] } 55... Be3 { [%clk 0:08:09] } 56. Ke1 { [%clk 0:18:14] } 56... Rc2 { [%clk 0:07:19] } 57. Rf1 { [%clk 0:15:37] } 57... Rh2 { [%clk 0:07:37] } 58. c5 { [%clk 0:15:47] } 58... bxc5 { [%clk 0:06:26] } 59. Bd3 { [%clk 0:16:14] } 59... Kxd7 { [%clk 0:05:47] } 60. Bxf5+ { [%clk 0:16:42] } 60... Kd6 { [%clk 0:05:59] } 61. Kd1 { [%clk 0:16:15] } 61... Rd2+ { [%clk 0:04:25] } 62. Ke1 { [%clk 0:16:44] } 62... Ra2 { [%clk 0:04:15] } 63. Kd1 { [%clk 0:16:47] } 63... Rxa4 { [%clk 0:03:16] } 64. Ke2 { [%clk 0:17:15] } 64... Bd4 { [%clk 0:03:28] } 65. Rb1 { [%clk 0:17:34] } 65... Rb4 { [%clk 0:03:07] } 66. Rxb4 { [%clk 0:17:51] } 66... cxb4 { [%clk 0:03:01] } 67. Kd3 { [%clk 0:17:50] } 67... Kd5 { [%clk 0:00:59] } 0-1